bitfinex/quotes_ETHUSD_20241212
["timestamp","ask_amount","ask_price","bid_price","bid_amount"]
[1733968876192,0.02665695,3808.0,3807.1,2.105489]
[1733968876378,0.02665695,3808.0,3807.2,0.8296]
[1733968876565,2.62585,3808.3,3807.2,0.8296]
[1733968876870,2.89624826,3808.2,3807.2,0.8296]
[1733968877048,2.65297702,3808.2,3807.2,0.8296]
[1733968877871,2.62599,3808.1,3807.2,0.8296]
[1733968878067,0.02689208,3808.0,3807.2,0.8296]
[1733968879178,0.02689208,3808.0,3807.2,1.096428]
[1733968880286,0.2432974,3808.2,3807.2,0.8296]
[1733968880484,0.02694395,3808.1,3807.2,0.8296]
[1733968881694,3.39986,3808.0,3807.2,0.8296]
[1733968881891,2.62612,3807.9,3807.2,0.8296]
[1733968882188,0.02678426,3807.9,3807.2,0.8296]
[1733968882795,0.02678426,3807.9,3806.4,6.78781593]
[1733968882796,2.62641,3807.5,3806.9,0.7903]
[1733968883026,2.62649,3807.4,3806.9,0.7903]
[1733968883175,0.02663684,3807.4,3806.9,0.7903]
[1733968883486,2.6266,3807.2,3806.1,0.7903]
[1733968883686,0.7738,3807.4,3806.3,0.7903]
[1733968883687,3.40027,3807.4,3806.3,0.7903]
[1733968883887,0.02652337,3807.3,3806.3,0.7903]
[1733968884591,2.65306337,3807.3,3806.3,0.7903]
[1733968884763,0.02652337,3807.3,3806.3,0.7903]
[1733968884969,0.02652337,3807.3,3806.5,0.7903]
[1733968885169,1.86630935,3807.7,3806.5,1.06902694]
[1733968885375,0.02619155,3807.2,3806.5,0.7903]
[1733968885569,3.21743559,3807.7,3806.5,0.7903]
[1733968885794,0.02616766,3807.1,3806.5,0.7903]
[1733968885959,2.62652,3807.4,3806.5,0.7903]
[1733968886165,0.02614376,3807.0,3806.5,0.7903]
[1733968886493,0.02611987,3806.9,3806.5,0.7903]
[1733968886698,2.6264,3807.5,3806.5,0.7903]
[1733968886999,0.02623932,3807.4,3806.5,0.7903]
[1733968887199,0.02623932,3807.4,3806.6,0.81656871]
[1733968887493,0.7738,3808.0,3806.6,0.7903]
[1733968887702,0.0260732,3807.9,3806.6,0.7903]
[1733968887865,0.0260732,3807.9,3806.8,1.8388]
[1733968888060,0.0260732,3807.9,3806.9,0.7903]
[1733968888061,2.62619,3807.8,3806.9,0.7903]
[1733968888278,0.02613183,3807.7,3806.9,0.7903]
[1733968889577,1.63876403,3808.4,3806.9,0.7903]
[1733968889578,1.09250935,3808.6,3807.1,0.7903]
[1733968889763,0.0254251,3807.6,3807.5,0.7903]
[1733968889964,3.52699004,3808.6,3807.5,0.92433]
[1733968890373,0.02581356,3808.5,3807.5,2.76278]
[1733968890598,0.02581356,3808.5,3807.6,0.7903]
[1733968891108,0.02581356,3808.5,3807.7,0.02625984]
[1733968891267,0.02581356,3808.5,3807.9,1.83823]
[1733968891600,0.02581356,3808.5,3808.1,0.7903]
[1733968895330,0.02581356,3808.5,3808.3,1.83804]
[1733968895469,0.02581356,3808.5,3808.4,1.86429557]
[1733968895675,0.02581356,3808.5,3808.4,2.62834]
[1733968897099,0.02581356,3808.5,3808.4,3.17834]
[1733968897435,0.02581356,3808.5,3808.4,6.74158157]
[1733968897732,0.90135004,3808.6,3808.5,1.83799]
[1733968897938,0.90135004,3808.6,3808.5,2.60009]
[1733968898933,0.7738,3809.8,3808.4,4.11324157]
[1733968898934,0.7738,3809.8,3808.6,2.60003]
[1733968899434,2.6251,3809.4,3808.6,0.7621]
[1733968899810,0.02668052,3809.3,3808.6,0.7621]
[1733968900040,0.02668052,3809.3,3808.6,1.07844216]
[1733968900240,2.62494,3809.7,3808.6,1.07844216]
[1733968900441,0.02666225,3809.2,3808.6,1.07844216]
[1733968900741,2.62489,3809.7,3808.6,0.7883531]
[1733968901049,0.7738,3809.8,3808.6,0.7883531]
[1733968901208,0.02705979,3809.6,3808.6,0.7621]
[1733968901406,2.65202365,3809.7,3808.6,0.7621]
[1733968901629,2.62494,3809.7,3808.6,0.7621]
[1733968901806,0.02705979,3809.6,3808.7,0.31632916]
[1733968902648,0.02705979,3809.6,3808.7,2.15421916]
[1733968902969,2.62476,3809.9,3808.8,0.7621]
[1733968903130,2.62476,3809.9,3808.8,2.59994]
[1733968903131,0.02703593,3809.5,3808.8,2.59994]
[1733968903332,3.39143,3810.1,3808.9,1.83778]
[1733968903631,0.02720556,3810.0,3809.1,0.7621]
[1733968904947,2.65191556,3810.0,3809.1,0.7621]
[1733968905187,0.02720556,3810.0,3809.1,0.7621]
[1733968905316,2.62494,3809.6,3808.3,0.7672]
[1733968905509,2.42782079,3809.9,3808.3,0.7672]
[1733968905510,0.02713661,3809.5,3808.3,0.7672]
[1733968905821,2.62538,3809.0,3808.3,1.14392]
[1733968906013,0.79,3809.4,3808.3,0.7672]
[1733968906014,0.81740359,3809.4,3808.3,0.7672]
[1733968906345,2.6255,3808.8,3808.3,0.7672]
[1733968906646,2.62532,3809.1,3808.3,0.7672]
[1733968906804,0.02723653,3808.7,3808.3,0.7672]
[1733968907010,2.62537,3809.0,3808.3,0.7672]
[1733968907210,0.02721265,3808.6,3808.3,0.7672]
[1733968907450,0.79,3809.4,3808.3,0.7672]
[1733968907451,2.62553,3808.8,3808.3,0.7672]
[1733968907671,3.41553,3808.8,3808.3,0.7672]
[1733968907982,2.65236464,3808.7,3808.0,0.7672]
[1733968908281,0.02679464,3808.7,3808.0,0.7672]
[1733968908832,2.65235464,3808.7,3808.0,0.7672]
[1733968909548,0.02679464,3808.7,3808.0,0.7672]
[1733968910664,2.62567,3808.6,3808.0,0.7672]
[1733968910842,0.02679464,3808.7,3808.0,0.7672]
[1733968911031,3.4155,3808.8,3808.0,0.7672]
[1733968911032,0.02674689,3808.5,3808.0,0.7672]
[1733968911227,0.02677076,3808.6,3808.0,0.7672]
[1733968911427,0.02672302,3808.4,3808.0,0.7672]
[1733968911661,2.65245689,3808.5,3808.0,0.7672]
[1733968911864,0.02669914,3808.3,3808.0,0.7672]
[1733968912100,0.02672302,3808.4,3808.0,0.7672]
[1733968912232,0.02667526,3808.2,3808.0,0.7672]
[1733968912429,2.6255,3808.8,3808.0,0.7672]
[1733968912868,0.02679464,3808.7,3808.0,0.7672]
[1733968914068,2.65235464,3808.7,3808.0,0.7672]
[1733968914256,2.65235464,3808.7,3807.6,0.7532]
[1733968914257,0.7772,3808.6,3807.6,0.7532]
[1733968914657,2.6259,3808.3,3807.6,0.7532]
[1733968915060,0.02606971,3808.2,3807.6,0.7532]
[1733968915263,0.02606971,3808.2,3806.8,0.26291]
[1733968915471,0.7772,3808.0,3807.0,0.7532]
[1733968915644,2.62619,3807.8,3807.0,0.7532]
[1733968916076,2.6521072,3807.7,3807.0,0.7532]
[1733968916577,0.0258272,3807.7,3807.0,0.7532]
[1733968916947,2.62612,3807.9,3807.0,0.7532]
[1733968917147,0.02542279,3807.6,3807.0,0.7532]
[1733968917365,2.62612,3807.9,3807.0,0.7532]
[1733968917569,0.02539891,3807.5,3807.0,0.7532]
[1733968917748,2.62612,3807.9,3807.0,1.012406]
[1733968917949,0.02537502,3807.4,3807.0,1.012406]
[1733968918140,2.62612,3807.9,3807.0,1.012406]
[1733968918341,0.02535113,3807.3,3807.0,1.012406]
[1733968918568,2.62612,3807.9,3807.0,1.012406]
[1733968918890,0.02532724,3807.2,3807.0,0.7532]
[1733968919065,2.62619,3807.8,3807.0,0.7532]
[1733968919487,2.62634,3807.6,3807.0,0.7532]
[1733968919845,0.02539891,3807.5,3807.0,0.7532]
[1733968920581,0.7772,3808.0,3807.0,0.7532]
[1733968920785,0.0250112,3807.4,3807.0,2.59189]
[1733968921106,2.6257,3808.6,3807.4,0.7532]
[1733968921247,2.6257,3808.6,3807.5,2.59167]
[1733968921558,0.7772,3808.7,3807.7,0.7532]
[1733968921559,0.02530187,3808.5,3807.7,0.7532]
[1733968921986,2.6254,3809.0,3807.8,1.83828]
[1733968922192,2.42782079,3809.2,3807.9,0.7532]
[1733968922193,0.0252724,3808.4,3807.9,0.7532]
[1733968922342,2.62544,3808.9,3808.0,0.259148]
[1733968922543,0.02564212,3808.8,3808.0,0.259148]
[1733968923549,0.02564212,3808.8,3808.1,0.7532]
[1733968923851,0.02623942,3808.7,3808.1,0.7532]
[1733968924090,2.62537,3809.0,3808.1,0.7532]
[1733968924454,0.02628716,3808.9,3808.1,0.7532]
[1733968925754,0.7772,3808.7,3807.5,0.7532]
[1733968926147,0.7772,3808.7,3807.2,0.7272671]
[1733968926148,0.02630505,3808.6,3807.7,0.7532]
[1733968926376,0.02630505,3808.6,3807.9,1.83825]
[1733968926579,0.7772,3809.1,3808.0,0.8014]
[1733968926929,2.62552,3808.8,3808.0,0.8014]
[1733968927078,0.02645202,3808.7,3808.0,0.8014]
[1733968927580,0.7772,3809.1,3808.0,0.8014]
[1733968927801,0.02642815,3808.6,3808.0,0.8014]
[1733968928113,0.02629238,3808.5,3808.0,0.8014]
[1733968928315,2.62545,3808.9,3808.0,0.8014]
[1733968928479,0.02636399,3808.8,3808.0,0.8014]
[1733968929725,2.6257,3808.5,3808.0,0.8014]
[1733968929875,0.0262685,3808.4,3808.0,0.8014]
[1733968930079,2.42782079,3808.7,3808.0,0.8014]
[1733968930080,2.6256,3808.7,3808.0,0.8014]
[1733968930280,4.29753014,3809.1,3808.0,0.8014]
[1733968930281,2.65191032,3808.6,3808.0,0.8014]
[1733968930486,0.7692,3808.5,3807.4,0.8014]
[1733968930798,0.02621257,3808.4,3807.4,0.8014]
[1733968930990,2.65198257,3808.4,3807.4,0.8014]
[1733968931191,2.62585,3808.3,3807.4,0.8014]
[1733968931391,0.02621257,3808.4,3807.4,0.8014]
[1733968931637,0.02616482,3808.2,3807.4,0.8014]
[1733968931836,0.7692,3808.5,3807.4,0.8014]
[1733968931837,0.02618869,3808.3,3807.4,0.8014]
[1733968931985,2.62585,3808.3,3807.4,0.8014]
[1733968932189,0.02594101,3808.2,3807.4,0.8014]
[1733968932797,2.62605,3808.0,3807.4,0.8014]
[1733968933092,0.02563434,3807.9,3807.4,0.8014]
[1733968935541,0.02563434,3807.9,3806.6,0.8014]
[1733968935542,3.22265513,3807.9,3806.6,0.8014]
[1733968935828,2.62627,3807.7,3806.6,1.34013712]
[1733968936121,0.02541158,3807.6,3806.6,1.34013712]
[1733968936333,2.62646,3807.4,3806.6,0.8014]
[1733968936621,2.62662,3807.2,3806.6,0.8014]
[1733968937118,0.02510184,3807.1,3806.6,0.8014]
[1733968937319,0.7692,3807.3,3806.6,0.8014]
[1733968937522,0.02512573,3807.2,3806.6,0.8014]
[1733968937726,2.65176573,3807.2,3806.6,0.8014]
[1733968938495,0.02512573,3807.2,3806.6,0.8014]
[1733968938693,0.02512573,3807.2,3805.8,3.0]
[1733968938694,1.09250935,3808.4,3806.7,0.02626886]
[1733968938936,0.79491527,3808.3,3807.2,2.63997]
[1733968939316,0.79491527,3808.3,3807.2,0.8014]
[1733968939641,3.42076527,3808.3,3807.2,0.8014]
[1733968940498,0.02571527,3808.3,3807.4,1.8385]
[1733968940700,2.62571,3808.5,3807.4,1.8385]
[1733968940701,2.62571,3808.5,3807.5,0.8014]
[1733968940999,0.024344,3808.4,3807.5,1.06539]
[1733968941539,0.02432012,3808.3,3807.5,1.06539]
[1733968941762,2.62572,3808.5,3807.5,1.06539]
[1733968941899,0.02429625,3808.2,3807.5,1.06539]
[1733968942095,2.62572,3808.5,3807.5,1.06539]
[1733968942327,0.024344,3808.4,3807.5,1.06539]
[1733968942960,0.024344,3808.4,3807.5,2.90385]
[1733968943159,0.024344,3808.4,3807.6,0.290389]
[1733968943504,5.82266079,3808.6,3807.6,0.290389]
[1733968943820,0.02436787,3808.5,3807.6,0.290389]
[1733968945041,2.62586,3808.3,3807.6,0.290389]
[1733968945238,0.24346933,3808.2,3807.5,0.8014]
[1733968945438,0.26805115,3808.2,3807.5,0.8014]
[1733968945815,0.02458182,3808.2,3807.5,0.8014]
[1733968946416,0.02458182,3808.2,3806.9,3.0]
[1733968946417,2.62606,3808.0,3806.9,1.83876]
[1733968946619,0.24346933,3807.9,3807.0,0.8021]
[1733968946824,0.24346933,3807.8,3807.0,0.8021]
[1733968947065,0.24338949,3807.8,3807.0,0.8021]
[1733968947209,0.02437844,3807.7,3807.0,0.8021]
[1733968947410,0.02437844,3807.7,3807.0,1.0907319]
[1733968947762,0.24338949,3807.8,3807.0,1.0907319]
[1733968948055,0.02437844,3807.7,3807.0,0.8021]
[1733968948239,0.26776793,3807.7,3807.0,0.8021]
[1733968948939,2.86970949,3807.6,3807.0,0.8021]
[1733968949144,0.26753537,3807.5,3807.0,0.8021]
[1733968949642,0.02414588,3807.5,3807.0,0.8021]
[1733968950441,0.243302,3807.7,3807.0,0.8021]
[1733968950641,0.02412199,3807.4,3807.0,0.8021]
[1733968950846,0.243302,3807.6,3807.0,0.8021]
[1733968951369,2.62652,3807.4,3807.0,0.8021]
[1733968951646,2.62652,3807.4,3806.3,0.8021]
[1733968951808,0.02545939,3807.3,3806.3,0.8021]
[1733968952007,0.02545939,3807.3,3806.3,1.48247763]
[1733968952236,0.02545939,3807.3,3806.3,0.8021]
[1733968952421,0.02545939,3807.3,3806.3,2.64111]
[1733968953028,0.02545939,3807.3,3806.3,0.8021]
[1733968953354,2.65198939,3807.3,3806.3,0.8021]
[1733968954067,2.62661,3807.2,3806.3,0.8021]
[1733968954274,0.02545939,3807.3,3806.3,1.07525]
[1733968954471,0.02949585,3807.1,3806.4,0.8021]
[1733968954625,0.02725451,3807.2,3806.5,0.02626892]
[1733968954966,1.59414673,3807.7,3806.8,0.8021]
[1733968954967,0.02925082,3807.1,3806.8,0.8021]
[1733968955170,0.24315303,3807.8,3806.8,1.066191]
[1733968955335,0.24315303,3807.8,3806.8,0.8021]
[1733968955533,0.272583,3807.7,3806.8,0.8021]
[1733968955749,2.62632,3807.6,3806.8,0.8021]
[1733968955951,0.02948228,3807.5,3806.8,0.8021]
[1733968956852,3.85571114,3807.9,3806.8,0.8021]
[1733968956853,0.24322009,3807.8,3806.8,0.8021]
[1733968957061,0.02945243,3807.4,3806.8,0.8021]
[1733968957263,0.24322009,3807.8,3806.8,1.066194]
[1733968957421,0.24322009,3807.7,3806.8,0.8021]
[1733968957636,0.02961901,3807.7,3806.8,0.8021]
[1733968957826,2.86955009,3807.6,3806.8,0.8021]
[1733968958058,0.24322009,3807.5,3806.8,0.8021]
[1733968958358,0.27277939,3807.5,3806.8,0.8021]
[1733968958757,0.0295593,3807.5,3806.8,0.8021]
[1733968959469,0.27295752,3807.5,3806.8,0.8021]
[1733968959769,2.89937752,3807.5,3806.8,0.8021]
[1733968959927,2.86986822,3807.4,3806.8,0.8021]
[1733968960258,0.02540535,3807.3,3806.8,0.8021]
[1733968960555,0.26880579,3807.3,3806.8,0.8021]
[1733968961061,0.02540535,3807.3,3806.8,0.8021]
[1733968961229,0.24340455,3807.5,3806.8,0.8021]
[1733968961426,0.02537976,3807.2,3806.8,0.8021]
[1733968961761,0.24340455,3807.4,3806.8,0.8021]
[1733968961957,0.02540535,3807.3,3806.8,0.8021]
[1733968962859,0.24342978,3807.4,3806.8,0.8021]
[1733968963049,0.02537976,3807.2,3806.8,0.8021]
[1733968963246,0.24342978,3807.4,3806.8,0.8021]
[1733968963247,0.02540535,3807.3,3806.8,0.8021]
[1733968963447,0.02535416,3807.1,3806.8,0.8021]
[1733968963652,0.02537976,3807.2,3806.8,0.8021]
[1733968963853,0.02532856,3807.0,3806.8,0.8021]
[1733968964056,0.24344582,3807.4,3806.8,0.8021]
[1733968964254,0.02530296,3806.9,3806.8,0.8021]
[1733968964934,2.62646,3807.4,3806.8,0.8021]
[1733968965134,0.02540535,3807.3,3806.8,0.8021]
[1733968965861,0.26879115,3807.3,3806.8,0.8021]
[1733968966250,0.02540535,3807.3,3806.8,0.8021]
[1733968967278,0.02540535,3807.3,3806.8,2.6409]
[1733968967574,0.02527775,3807.2,3806.9,0.26409]
[1733968967779,0.24339392,3807.5,3806.9,0.26409]
[1733968967980,0.02727732,3807.4,3806.9,0.26409]
[1733968968483,0.24339392,3807.5,3806.9,0.26409]
[1733968968670,0.02724975,3807.3,3806.9,0.26409]
[1733968968875,0.02727732,3807.4,3806.9,0.26409]
[1733968969078,0.02527775,3807.2,3806.9,0.26409]
[1733968969286,0.02530334,3807.3,3806.8,0.8021]
[1733968969588,0.0294907,3807.2,3806.9,0.02626601]
[1733968969883,0.0294907,3807.2,3806.2,1.10012114]
[1733968969884,0.24339392,3807.8,3807.2,0.8021]
[1733968970083,0.13702179,3807.9,3807.3,0.264076]
[1733968970387,0.0254313,3807.8,3807.3,0.264076]
[1733968970550,0.0254313,3807.8,3807.4,1.83852]
[1733968970871,0.0254313,3807.8,3807.4,0.8021]
[1733968971277,0.24339392,3808.1,3807.4,0.8021]
[1733968971478,0.24339392,3808.2,3807.4,0.8021]
[1733968971659,0.02392926,3808.0,3807.4,0.8021]
[1733968971867,0.02404274,3808.1,3807.4,0.8021]
[1733968972066,0.02399498,3807.9,3807.4,0.8021]
[1733968972391,0.02397109,3807.8,3807.4,2.64059]
[1733968972552,0.24339392,3808.1,3807.5,0.2904666]
[1733968972889,0.02401886,3808.0,3807.5,0.2904666]
[1733968973189,2.62595,3808.2,3807.4,0.8021]
[1733968973386,0.26795634,3808.1,3807.4,0.8021]
[1733968973593,0.02447953,3808.1,3807.4,0.8021]
[1733968973749,2.76293352,3808.3,3807.4,0.8021]
[1733968973956,0.26800659,3808.2,3807.4,0.8021]
[1733968974180,0.24350319,3808.1,3807.4,0.8021]
[1733968974388,0.26795884,3808.0,3807.4,0.8021]
[1733968974593,0.24350319,3807.9,3807.4,0.8021]
[1733968974787,0.02440789,3807.8,3807.4,0.8021]
[1733968974992,0.24352581,3808.1,3807.4,0.8021]
[1733968975197,0.26798146,3808.0,3807.4,0.8021]
[1733968975576,0.02445565,3808.0,3807.4,0.8021]
[1733968975722,0.26798146,3808.0,3807.4,0.8021]
[1733968975901,0.02445565,3808.0,3807.4,0.8021]
[1733968976209,0.26798146,3808.0,3807.4,0.8021]
[1733968976442,0.02445565,3808.0,3807.4,0.8021]
[1733968976786,2.62595,3808.2,3807.4,0.8021]
[1733968976981,0.24355656,3808.1,3807.4,0.8021]
[1733968977229,0.26801221,3808.0,3807.4,0.8021]
[1733968977539,0.02445565,3808.0,3807.4,0.8021]
[1733968977888,0.24352851,3808.0,3807.4,0.8021]
[1733968978231,0.02443177,3807.9,3807.4,0.8021]
[1733968978439,0.24352851,3808.1,3807.4,0.8021]
[1733968978603,0.02436872,3807.8,3807.4,2.64062]
[1733968978808,0.24349378,3808.2,3807.5,2.102522]
[1733968979004,0.26788935,3808.1,3807.5,0.264062]
[1733968979211,0.02439557,3808.1,3807.5,0.264062]
[1733968979527,0.26788935,3808.1,3807.5,0.264062]
[1733968979702,0.02439557,3808.1,3807.5,0.264062]
[1733968979909,0.26788935,3808.1,3807.5,0.264062]
[1733968980107,0.02439557,3808.1,3807.5,0.264062]
[1733968980315,0.26788935,3808.1,3807.5,0.264062]
[1733968980512,0.02439557,3808.1,3807.4,0.8021]
[1733968980826,0.24349378,3808.0,3807.4,0.8021]
[1733968981166,0.26788935,3808.1,3807.4,0.8021]
[1733968981371,0.02439557,3808.1,3807.4,0.8021]
[1733968981571,0.26788935,3808.1,3807.4,0.8021]
[1733968981771,0.02439557,3808.1,3807.4,0.8021]
[1733968981985,0.2678363,3808.1,3807.4,0.8021]
[1733968982224,0.02439557,3808.1,3807.4,0.8021]
[1733968982387,2.8938163,3808.1,3807.4,0.8021]
[1733968982581,0.02439557,3808.1,3807.4,0.8021]
[1733968982792,0.24344375,3808.2,3807.4,0.8021]
[1733968983028,0.26785611,3808.1,3807.5,0.264066]
[1733968983321,0.02441236,3808.1,3807.5,0.264066]
[1733968983507,0.26785611,3808.1,3807.5,0.264066]
[1733968983716,0.02441236,3808.1,3807.5,0.264066]
[1733968983900,0.26785611,3808.1,3807.5,0.264066]
[1733968984097,0.02441236,3808.1,3807.5,0.264066]
[1733968984301,0.26785611,3808.1,3807.5,0.264066]
[1733968984523,0.02441236,3808.1,3807.5,0.264066]
[1733968984725,0.26785611,3808.1,3807.5,2.102526]
[1733968984894,0.02441236,3808.1,3807.7,0.7754]
[1733968985106,0.02441236,3808.1,3808.0,0.7754]
[1733968985421,1.73317311,3808.8,3808.0,0.7754]
[1733968985631,0.02449073,3808.1,3808.0,0.7754]
[1733968985812,0.24346473,3808.7,3808.0,1.036771]
[1733968986026,0.02468289,3808.6,3808.0,2.61363]
[1733968986623,0.38051279,3808.8,3808.0,2.61363]
[1733968986922,0.02465902,3808.5,3808.2,0.8202]
[1733968987152,0.24346473,3808.9,3808.4,0.8202]
[1733968987293,0.24346473,3809.0,3808.5,1.86419511]
[1733968987495,0.24346473,3809.3,3808.7,0.8202]
[1733968987695,2.41886403,3809.7,3808.7,0.84645301]
[1733968987696,0.24346473,3809.2,3808.7,0.84645301]
[1733968988006,0.24346473,3809.6,3808.9,0.8202]
[1733968988331,0.13701003,3809.9,3809.0,1.83773]
[1733968988503,0.24335223,3809.8,3809.0,1.83773]
[1733968988697,0.13701003,3809.9,3809.0,1.83773]
[1733968988941,0.13701003,3809.9,3809.1,0.8202]
[1733968990815,2.76175003,3809.9,3809.1,0.8202]
[1733968991481,0.13701003,3809.9,3809.1,0.8202]
[1733968992327,0.13701003,3809.9,3809.1,2.923684]
[1733968993145,0.13701003,3809.9,3809.1,1.085994]
[1733968993946,0.13701003,3809.9,3809.2,0.8202]
[1733968995158,2.76175003,3809.9,3809.2,0.8202]
[1733968995841,0.13701003,3809.9,3809.2,0.8202]
[1733968996353,2.62482,3809.8,3809.2,0.8202]
[1733968996559,0.13701003,3809.9,3809.2,0.8202]
[1733968998726,2.65124573,3809.8,3809.2,0.8202]
[1733968998921,0.02643573,3809.8,3809.2,0.8202]
[1733969005455,0.02643573,3809.8,3809.2,1.08599]
[1733969005628,0.02643573,3809.8,3809.3,1.8376]
[1733969005968,0.1619057,3810.2,3809.4,0.7501]
[1733969006138,0.02651257,3809.7,3809.4,0.7501]
[1733969006345,0.1619057,3810.2,3809.4,0.7501]
[1733969006656,0.02663596,3810.1,3809.4,0.7501]
[1733969006856,0.02663596,3810.1,3809.5,1.86373922]
[1733969007034,0.02663596,3810.1,3809.7,0.7501]
[1733969007361,0.02663596,3810.1,3809.6,1.83743]
[1733969007362,0.02663596,3810.1,3810.0,0.7501]
[1733969007768,0.1619057,3810.2,3810.0,0.7501]
[1733969009841,0.02712266,3810.1,3810.0,0.7501]
[1733969010042,0.1619057,3810.2,3810.0,0.7501]
[1733969010261,0.02712266,3810.1,3810.0,0.7501]
[1733969010474,0.1619057,3810.2,3810.0,0.7501]
[1733969010829,0.02712266,3810.1,3810.0,0.7501]
[1733969011034,0.1619057,3810.2,3810.0,0.7501]
[1733969011267,0.02712266,3810.1,3810.0,0.7501]
[1733969011472,0.02712266,3810.1,3809.4,0.7501]
[1733969011653,0.1619057,3810.2,3809.4,0.7501]
[1733969011654,0.1619057,3810.2,3809.6,0.7501]
[1733969011855,0.0270988,3810.0,3809.6,0.7501]
[1733969012056,0.02712266,3810.1,3809.6,0.7501]
[1733969012264,0.1619057,3810.2,3809.7,0.25876]
[1733969012438,0.1619057,3810.2,3809.6,0.7501]
[1733969012439,0.0270988,3810.0,3809.6,0.7501]
[1733969012768,0.1619057,3810.2,3809.6,0.7501]
[1733969012984,0.02707495,3809.9,3809.6,0.7501]
[1733969013138,0.1619057,3810.2,3809.6,0.7501]
[1733969013336,0.02705109,3809.8,3809.6,2.58755]
[1733969013536,0.1619057,3810.2,3809.7,0.258755]
[1733969013839,0.02712266,3810.1,3809.7,0.258755]
[1733969014545,0.1619057,3810.2,3809.6,0.7501]
[1733969014744,2.6517688,3810.0,3808.6,3.13804]
[1733969014947,0.9510057,3810.2,3808.7,0.7501]
[1733969014948,0.02712266,3810.1,3808.7,0.7501]
[1733969015154,0.02707495,3809.9,3808.9,1.83779]
[1733969015468,0.27065418,3809.8,3809.0,0.7501]
[1733969015771,0.02738109,3809.8,3809.1,0.258789]
[1733969015979,0.27065418,3809.8,3809.1,0.258789]
[1733969016157,0.02738109,3809.8,3809.1,0.258789]
[1733969016362,0.02738109,3809.8,3809.2,0.7501]
[1733969016545,0.24340623,3809.9,3809.3,0.2846629]
[1733969016746,0.02720063,3809.7,3809.2,0.7501]
[1733969016950,0.02722449,3809.8,3809.2,0.7501]
[1733969017163,0.24354846,3809.7,3809.2,0.7501]
[1733969017378,2.62497,3809.6,3808.4,0.7501]
[1733969017558,1.03275518,3809.5,3808.4,2.58813]
[1733969017759,0.24365518,3809.4,3808.5,0.258813]
[1733969017958,0.02693329,3809.4,3808.5,0.258813]
[1733969018343,0.02693329,3809.4,3808.6,1.83792]
[1733969018543,0.02693329,3809.4,3808.6,0.7501]
[1733969018941,0.243621,3809.6,3808.6,0.7501]
[1733969019149,0.0266577,3809.3,3808.6,0.7501]
[1733969019334,3.41391,3809.8,3808.7,1.83789]
[1733969019335,0.02670542,3809.5,3808.7,1.83789]
[1733969019538,0.02663384,3809.2,3808.9,0.7501]
[1733969019738,3.71681935,3810.6,3809.1,0.7501]
[1733969019739,0.24362386,3809.9,3809.1,0.7501]
[1733969020054,0.27042884,3809.8,3809.1,0.7501]
[1733969020396,0.02680498,3809.8,3809.1,0.7501]
[1733969020745,3.5755357,3810.2,3809.1,0.7501]
[1733969020947,0.02678113,3809.7,3809.6,1.83746]
[1733969021140,0.1619057,3810.2,3809.7,0.7501]
[1733969021453,0.1619057,3810.2,3809.8,1.86359465]
[1733969021855,0.1619057,3810.2,3809.9,1.8373]
[1733969022187,0.1619057,3810.2,3810.1,0.7501]
[1733969022668,0.1619057,3810.2,3810.1,1.008836]
[1733969023270,0.1619057,3810.2,3810.1,2.846056]
[1733969023457,0.1619057,3810.2,3810.1,3.396056]
[1733969023777,0.1619057,3810.2,3810.1,6.42229506]
[1733969023951,0.1619057,3810.2,3810.1,6.396056]
[1733969024285,0.1619057,3810.2,3810.1,1.008836]
[1733969024438,0.1619057,3810.2,3810.1,0.7501]
[1733969024638,0.1619057,3810.2,3810.1,2.58732]
[1733969026050,0.1619057,3810.2,3810.1,0.7501]
[1733969026878,0.18633454,3810.2,3810.1,0.7501]
[1733969027579,0.1619057,3810.2,3810.1,0.7501]
[1733969027745,0.1619057,3810.2,3810.1,1.008845]
[1733969027960,0.15193169,3810.2,3810.1,0.258745]
[1733969028192,0.15193169,3810.2,3809.8,0.7501]
[1733969028388,0.17636053,3810.2,3809.8,0.7501]
[1733969028717,0.15193169,3810.2,3809.8,0.7501]
[1733969028907,0.15193169,3810.2,3810.1,2.58732]
[1733969029196,0.15193169,3810.2,3810.1,3.13732]
[1733969029401,0.15193169,3810.2,3810.1,9.05336459]
[1733969031263,0.13691864,3811.6,3810.9,1.83681]
[1733969031480,0.02479477,3811.5,3811.0,0.7501]
[1733969031681,0.02479477,3811.5,3811.0,2.58688]
[1733969031857,0.02479477,3811.5,3811.0,0.7501]
[1733969032056,0.7891,3811.7,3811.0,0.7501]
[1733969032303,0.02481861,3811.6,3811.0,0.7501]
[1733969032665,0.02481861,3811.6,3811.0,1.008797]
[1733969033171,0.02481861,3811.6,3810.3,1.83709]
[1733969033172,0.02481861,3811.6,3810.4,3.55]
[1733969033360,2.64838861,3811.6,3810.4,3.0]
[1733969033565,2.64838861,3811.6,3810.4,4.83707]
[1733969036598,0.02481861,3811.6,3810.3,3.8079]
[1733969036791,2.6238,3811.3,3810.3,0.8079]
[1733969036995,0.8062,3811.2,3810.3,0.8079]
[1733969037166,0.83181845,3811.2,3810.3,0.8079]
[1733969037596,3.45566845,3811.2,3810.3,0.8079]
[1733969038003,0.83181845,3811.2,3809.9,0.8079]
[1733969038975,2.62403,3811.0,3809.9,0.8079]
[1733969039364,0.02523923,3810.9,3809.9,0.8079]
[1733969040677,0.02523923,3810.9,3810.0,0.02624303]
[1733969041199,2.64928923,3810.9,3809.9,0.8079]
[1733969041799,0.02523923,3810.9,3809.9,0.8079]
[1733969042000,2.62414,3810.8,3809.9,0.8079]
[1733969042363,0.02519154,3810.7,3809.9,0.8079]
[1733969043380,0.02519154,3810.7,3810.0,0.02624304]
[1733969043765,1.09250935,3811.6,3810.1,0.8079]
[1733969043983,0.02511174,3810.6,3810.2,0.8079]
[1733969044185,0.8062,3811.7,3810.2,0.8079]
[1733969044405,1.04917903,3811.7,3810.2,0.8079]
[1733969044703,2.62379,3811.3,3810.2,0.8079]
[1733969045079,2.6489985,3811.2,3810.2,0.8079]
[1733969045897,3.43012,3811.1,3810.2,0.8079]
[1733969046265,2.62357,3811.6,3810.2,1.12913093]